bitfinex/quotes_ETHUSD_20250322
["timestamp","ask_amount","ask_price","bid_price","bid_amount"]
[1742621750573,5.03352,1986.7,1986.4,2.7377256]
[1742621751309,5.03352,1986.7,1986.4,0.43059285]
[1742621751463,5.03352,1986.7,1986.4,2.7377256]
[1742621752401,5.03331,1986.8,1986.5,2.30713275]
[1742621752812,5.03331,1986.8,1986.6,0.42921078]
[1742621755516,5.03347,1986.7,1986.6,0.42921078]
[1742621755872,5.03347,1986.7,1986.3,2.30713275]
[1742621756069,5.03347,1986.7,1986.6,0.42921078]
[1742621756267,5.03347,1986.7,1986.3,2.30713275]
[1742621756511,5.03347,1986.7,1986.6,0.42921078]
[1742621756711,5.03347,1986.7,1986.3,2.30713275]
[1742621756880,5.03347,1986.7,1986.6,0.42921078]
[1742621757081,5.03347,1986.7,1986.3,2.30713275]
[1742621757284,5.03347,1986.7,1986.6,0.42921078]
[1742621757485,5.03347,1986.7,1986.3,2.30713275]
[1742621757712,5.03347,1986.7,1986.6,0.42921078]
[1742621757912,5.03347,1986.7,1986.3,2.30713275]
[1742621758096,5.03347,1986.7,1986.6,0.42921078]
[1742621758301,5.03347,1986.7,1986.3,2.30713275]
[1742621758504,5.03347,1986.7,1986.6,0.42921078]
[1742621758813,5.03347,1986.7,1986.3,2.30713275]
[1742621759011,5.03347,1986.7,1986.6,0.42921078]
[1742621759507,5.03347,1986.7,1986.3,2.30713275]
[1742621759811,10.06713,1986.7,1986.6,0.42921078]
[1742621759995,10.06713,1986.7,1986.3,2.30713275]
[1742621760196,10.06713,1986.7,1986.6,0.42921078]
[1742621760398,5.03347,1986.7,1986.4,2.30713275]
[1742621760596,5.03347,1986.7,1986.6,0.42921078]
[1742621760786,5.03347,1986.7,1986.5,0.42934496]
[1742621760986,5.03347,1986.7,1986.6,0.42921078]
[1742621761606,5.03347,1986.7,1986.4,2.30713275]
[1742621762028,5.03347,1986.7,1986.5,0.42934496]
[1742621764557,5.03326,1986.8,1986.5,2.73647771]
[1742621764839,5.03299,1986.9,1986.6,2.30713275]
[1742621765242,5.03299,1986.9,1986.6,2.7359362]
[1742621766844,10.06613,1986.9,1986.6,2.7359362]
[1742621767040,5.03299,1986.9,1986.6,2.7359362]
[1742621767338,5.03299,1986.9,1986.6,0.42880345]
[1742621767540,5.03299,1986.9,1986.6,2.7359362]
[1742621768044,5.03299,1986.9,1986.6,0.42880345]
[1742621768240,5.03331,1986.8,1986.6,0.42880345]
[1742621768847,5.03331,1986.8,1986.7,0.42866929]
[1742621769198,5.03331,1986.8,1986.4,28.92213275]
[1742621769400,5.03331,1986.8,1986.7,0.42866929]
[1742621770099,5.03331,1986.8,1986.5,2.30713275]
[1742621770340,5.03331,1986.8,1986.7,0.42866929]
[1742621770628,5.03331,1986.8,1986.6,0.42880345]
[1742621770896,5.03331,1986.8,1986.7,0.42866929]
[1742621771116,5.03331,1986.8,1986.5,2.30713275]
[1742621771319,5.03331,1986.8,1986.6,0.42880345]
[1742621772048,5.03347,1986.7,1986.6,0.42880345]
[1742621772648,5.03347,1986.7,1986.4,28.92213275]
[1742621772841,5.03347,1986.7,1986.6,0.42880345]
[1742621773005,5.03347,1986.7,1986.5,0.42893763]
[1742621773339,5.03347,1986.7,1986.6,0.42872195]
[1742621774044,5.03347,1986.7,1986.4,28.92213275]
[1742621774345,5.03347,1986.7,1986.5,0.42885613]
[1742621775263,5.79901,1986.8,1986.5,0.42885613]
[1742621776129,5.03351,1986.7,1986.5,0.42885613]
[1742621777919,5.03372,1986.6,1986.5,0.42885613]
[1742621778252,5.03401,1986.5,1986.3,31.248]
[1742621781635,5.03354,1986.7,1986.4,2.30713275]
[1742621781837,5.03354,1986.7,1986.5,2.30713275]
[1742621782040,5.03331,1986.8,1986.6,2.30713275]
[1742621784250,10.06672,1986.8,1986.6,2.30713275]
[1742621785048,10.06676,1986.8,1986.5,2.30713275]
[1742621785252,5.03351,1986.7,1986.4,2.30713275]
[1742621787125,5.03327,1986.8,1986.5,2.30713275]
[1742621789677,5.03358,1986.7,1986.3,31.248]
[1742621789830,5.80793,1986.6,1986.3,33.55513275]
[1742621790532,5.80793,1986.6,1986.3,31.248]
[1742621790730,11.926001,1986.6,1986.3,26.614]
[1742621790933,5.03401,1986.5,1986.3,31.248]
[1742621791167,10.06819,1986.5,1986.3,31.248]
[1742621791368,5.03401,1986.5,1986.4,0.42896317]
[1742621796556,5.03401,1986.5,1986.2,6.94113275]
[1742621796757,5.03401,1986.5,1986.4,0.42896317]
[1742621796971,5.03401,1986.5,1986.2,6.94113275]
[1742621797175,5.03401,1986.5,1986.4,0.42896317]
[1742621797345,5.03401,1986.5,1986.3,0.42909737]
[1742621797545,5.03401,1986.5,1986.2,6.94113275]
[1742621797745,5.03401,1986.5,1986.4,0.42896317]
[1742621797974,5.03401,1986.5,1986.2,6.94113275]
[1742621798158,5.03401,1986.5,1986.4,0.42896317]
[1742621798689,5.03401,1986.5,1986.2,6.94113275]
[1742621798847,5.03401,1986.5,1986.4,0.42896317]
[1742621799060,5.03401,1986.5,1986.2,6.94113275]
[1742621799261,5.03401,1986.5,1986.4,0.42896317]
[1742621799601,5.03401,1986.5,1986.2,6.94113275]
[1742621799800,5.03401,1986.5,1986.4,0.42896317]
[1742621799986,5.03401,1986.5,1986.3,0.42909737]
[1742621800191,5.03401,1986.5,1986.4,0.42896317]
[1742621800563,5.03401,1986.5,1986.2,6.94113275]
[1742621800899,5.03401,1986.5,1986.3,0.42909737]
[1742621801062,5.03401,1986.5,1986.2,6.94113275]
[1742621801265,5.03401,1986.5,1986.3,0.42909737]
[1742621801462,5.03401,1986.5,1986.2,6.94113275]
[1742621801698,5.03401,1986.5,1986.3,0.42909737]
[1742621801858,5.03401,1986.5,1986.2,6.94113275]
[1742621802058,5.03401,1986.5,1986.3,0.42909737]
[1742621802259,5.03401,1986.5,1986.2,6.94113275]
[1742621802481,5.03401,1986.5,1986.3,0.42909737]
[1742621802712,5.03401,1986.5,1986.2,6.94113275]
[1742621803001,5.80795,1986.6,1986.4,0.42896317]
[1742621803154,5.80795,1986.6,1986.3,2.73623012]
[1742621803354,5.80795,1986.6,1986.5,0.42882898]
[1742621803556,5.0335,1986.7,1986.4,2.30713275]
[1742621803763,5.0335,1986.7,1986.5,0.42882898]
[1742621805777,10.06716,1986.7,1986.5,0.42882898]
[1742621805970,5.0335,1986.7,1986.5,0.42882898]
[1742621808791,5.03322,1986.8,1986.5,2.73596173]
[1742621809365,10.06661,1986.8,1986.5,2.73596173]
[1742621809597,5.03322,1986.8,1986.5,2.73596173]
[1742621810110,5.03322,1986.8,1986.6,2.30713275]
[1742621810392,5.03322,1986.8,1986.6,0.42899355]
[1742621811795,10.06662,1986.8,1986.6,0.42899355]
[1742621813364,5.03322,1986.8,1986.6,0.42899355]
[1742621813567,5.03322,1986.8,1986.6,2.7361263]
[1742621814593,10.06664,1986.8,1986.6,2.7361263]
[1742621814899,5.03322,1986.8,1986.6,2.7361263]
[1742621815799,10.06663,1986.8,1986.6,2.7361263]
[1742621817803,10.06663,1986.8,1986.6,0.42899355]
[1742621818775,10.06663,1986.8,1986.6,2.7361263]
[1742621818965,5.03347,1986.7,1986.6,2.7361263]
[1742621821921,10.06608,1986.9,1986.6,2.7361263]
[1742621822075,10.06676,1986.8,1986.6,2.7361263]
[1742621823026,5.03347,1986.7,1986.6,2.7361263]
[1742621823523,5.03326,1986.8,1986.6,2.7361263]
[1742621825409,10.06669,1986.8,1986.6,2.7361263]
[1742621825706,5.03326,1986.8,1986.6,2.7361263]
[1742621826600,6.117298,1986.9,1986.7,2.30713275]
[1742621826601,5.03298,1986.9,1986.7,2.30713275]
[1742621827018,5.03298,1986.9,1986.8,0.42829074]
[1742621827503,5.03277,1987.0,1986.8,0.42829074]
[1742621828007,5.85593,1987.2,1986.9,2.30713275]
[1742621828385,5.03223,1987.2,1987.0,0.42726216]
[1742621829103,5.03245,1987.1,1987.0,0.42726216]
[1742621829279,5.03309,1986.9,1986.7,2.30713275]
[1742621829484,5.03321,1986.8,1986.6,6.94013275]
[1742621829686,5.03321,1986.8,1986.6,8.23314603]
[1742621830108,5.03309,1986.9,1986.7,2.30713275]
[1742621831807,5.03321,1986.8,1986.7,2.30713275]
[1742621832013,5.03309,1986.9,1986.7,2.30713275]
[1742621832413,10.06629,1986.9,1986.7,2.30713275]
[1742621832714,5.03309,1986.9,1986.7,2.30713275]
[1742621833011,10.06629,1986.9,1986.7,2.30713275]
[1742621833214,5.03309,1986.9,1986.7,2.30713275]
[1742621834639,5.03321,1986.8,1986.7,2.30713275]
[1742621836055,5.03303,1986.9,1986.7,2.30713275]
[1742621836223,5.03321,1986.8,1986.6,34.84614603]
[1742621836392,5.03321,1986.8,1986.6,26.613]
[1742621836393,5.03347,1986.7,1986.6,26.613]
[1742621836604,5.03347,1986.7,1986.6,31.246]
[1742621837305,5.03347,1986.7,1986.6,26.613]
[1742621837519,5.03347,1986.7,1986.6,31.246]
[1742621839847,5.03347,1986.7,1986.6,26.613]
[1742621840821,5.03347,1986.7,1986.5,6.94013275]
[1742621841650,10.06718,1986.7,1986.5,6.94013275]
[1742621842255,5.03372,1986.6,1986.5,6.94013275]
[1742621842753,5.03372,1986.6,1986.5,4.633]
[1742621847953,5.03372,1986.6,1986.5,6.94013275]
[1742621848156,5.03323,1986.8,1986.5,7.63414603]
[1742621848332,5.03323,1986.8,1986.7,2.30713275]
[1742621848650,5.03323,1986.8,1986.6,2.30713275]
[1742621848856,5.03323,1986.8,1986.6,3.07054735]
[1742621849152,5.03323,1986.8,1986.7,2.30713275]
[1742621849843,5.03273,1987.0,1986.7,2.30713275]
[1742621850043,5.0322,1987.2,1986.9,2.30713275]
[1742621850265,5.0322,1987.2,1987.0,6.94113275]
[1742621850931,5.03199,1987.3,1987.0,6.94113275]
[1742621851136,5.03199,1987.3,1987.1,2.30713275]
[1742621851349,5.03199,1987.3,1987.1,0.42587912]
[1742621851650,5.03183,1987.4,1987.1,0.42587912]
[1742621851651,10.06371,1987.4,1987.1,0.42587912]
[1742621852025,10.06371,1987.4,1987.1,2.73301187]
[1742621852740,10.06371,1987.4,1987.1,0.42587912]
[1742621852945,5.0322,1987.2,1987.1,0.42587912]
[1742621854350,5.032,1987.3,1987.1,3.46971306]
[1742621854550,5.03157,1987.5,1987.2,2.30713275]
[1742621854750,5.03157,1987.5,1987.2,2.73287778]
[1742621856353,5.03144,1987.5,1987.2,2.73287778]
[1742621857318,5.03144,1987.5,1987.2,3.07983568]
[1742621858325,5.03144,1987.5,1987.2,0.77270293]
[1742621859729,5.03144,1987.5,1987.2,3.07983568]
[1742621861264,10.06308,1987.5,1987.2,3.07983568]
[1742621861561,5.03144,1987.5,1987.2,3.07983568]
[1742621866365,5.03144,1987.5,1987.2,2.73287778]
[1742621867031,10.0631,1987.5,1987.2,2.73287778]
[1742621867360,10.0631,1987.5,1987.2,0.42574503]
[1742621867661,5.0317,1987.4,1987.2,0.42574503]
[1742621868160,5.79605,1987.3,1987.2,0.42574503]
[1742621873438,5.0317,1987.4,1987.2,2.73287778]
[1742621873739,5.82092,1987.5,1987.2,2.73287778]
[1742621874170,5.82092,1987.5,1987.2,0.42574503]
[1742621887802,10.8526,1987.5,1987.2,0.42574503]
[1742621887984,5.03191,1987.4,1987.2,0.42574503]
[1742621888804,5.03195,1987.3,1987.2,0.42574503]
[1742621890100,5.83815,1987.3,1987.2,0.42574503]
[1742621892387,5.03195,1987.3,1987.2,0.42574503]
[1742621896925,5.83815,1987.3,1987.1,4.631]
[1742621897135,5.83815,1987.3,1987.2,0.42370955]
[1742621898300,6.925156,1987.3,1987.2,0.42370955]
[1742621901443,0.8062,1987.3,1987.2,0.42370955]
[1742621901606,5.03191,1987.4,1987.2,0.42370955]
[1742621903812,10.06379,1987.4,1987.2,0.42370955]
[1742621904022,5.03195,1987.3,1987.2,0.42370955]
[1742621908761,5.84395,1987.3,1987.2,0.42370955]
[1742621909328,9.46936103,1987.3,1987.2,0.42370955]
[1742621909532,5.03271,1987.0,1986.9,26.605]
[1742621909854,5.03271,1987.0,1986.9,31.62644503]
[1742621910053,5.03271,1987.0,1986.9,26.99344503]
[1742621915057,5.84447,1987.1,1986.9,26.99344503]
[1742621915245,5.03247,1987.1,1986.9,26.99344503]
[1742621917774,10.0651,1987.1,1986.9,26.99344503]
[1742621918099,5.03271,1987.0,1986.9,26.99344503]
[1742621921168,5.03271,1987.0,1986.9,0.38844503]
[1742621921369,8.12400275,1987.1,1986.7,4.633]
[1742621921370,5.03317,1986.9,1986.7,4.633]
[1742621921883,5.03314,1986.9,1986.7,4.633]
[1742621922291,10.06629,1986.9,1986.7,4.633]
[1742621922492,5.03314,1986.9,1986.7,4.633]
[1742621924693,10.06628,1986.9,1986.7,4.633]
[1742621924877,5.03321,1986.8,1986.7,4.633]
[1742621926184,10.06628,1986.9,1986.7,4.633]
[1742621926385,10.06628,1986.9,1986.7,5.02319611]
[1742621927808,5.03314,1986.9,1986.7,5.02319611]
[1742621932077,10.0663,1986.9,1986.7,5.02319611]
[1742621933311,5.03273,1987.0,1986.7,5.02319611]
[1742621933493,5.03273,1987.0,1986.7,8.68977572]
[1742621936596,10.06563,1987.0,1986.7,8.68977572]
[1742621937427,5.03273,1987.0,1986.7,8.68977572]
[1742621939735,10.06563,1987.0,1986.7,8.68977572]
[1742621940301,5.03273,1987.0,1986.7,8.68977572]
[1742621942431,10.06564,1987.0,1986.7,8.68977572]
[1742621943137,5.03273,1987.0,1986.7,8.68977572]
[1742621943322,10.06563,1987.0,1986.7,8.68977572]
[1742621945634,5.03273,1987.0,1986.7,8.68977572]
[1742621945840,10.06562,1987.0,1986.7,8.68977572]
[1742621946138,5.03273,1987.0,1986.7,8.68977572]
[1742621946712,5.03273,1987.0,1986.8,0.86897757]
[1742621947119,5.03273,1987.0,1986.9,0.36917187]
[1742621947507,5.03273,1987.0,1986.7,8.29957961]
[1742621947708,5.03273,1987.0,1986.9,0.36917187]
[1742621947910,5.03273,1987.0,1986.8,0.369306]
[1742621948113,5.03273,1987.0,1986.9,0.36917187]
[1742621948417,5.03273,1987.0,1986.7,8.29957961]
[1742621948608,5.03273,1987.0,1986.9,0.36917187]
[1742621948806,5.03273,1987.0,1986.8,0.369306]
[1742621949039,5.03273,1987.0,1986.7,8.29957961]
[1742621949239,5.03273,1987.0,1986.9,0.36917187]
[1742621949644,5.03273,1987.0,1986.7,10.60671236]
[1742621949941,5.03273,1987.0,1986.9,0.36917187]
[1742621950135,5.03273,1987.0,1986.8,0.369306]
[1742621950318,5.03273,1987.0,1986.9,0.36917187]
[1742621950723,5.03273,1987.0,1986.7,4.633]
[1742621951221,5.03273,1987.0,1986.8,0.369306]
[1742621952036,10.06562,1987.0,1986.8,0.369306]
[1742621952237,5.03273,1987.0,1986.8,0.369306]
[1742621953449,5.03248,1987.1,1986.8,3.5306366]
[1742621953629,5.03248,1987.1,1986.8,5.83776935]
[1742621953936,10.06461,1987.2,1986.8,10.87086935]
[1742621954119,5.03221,1987.2,1986.8,10.87086935]
[1742621954315,5.03221,1987.2,1986.9,7.34007275]
[1742621954510,5.03221,1987.2,1987.0,0.73400728]
[1742621954711,5.032,1987.3,1987.0,1.10309872]
[1742621955341,5.032,1987.3,1987.1,4.633]
[1742621955841,5.032,1987.3,1987.2,0.36876951]
[1742621960143,7.33913275,1987.3,1987.2,0.36876951]
[1742621961642,5.032,1987.3,1987.2,0.36876951]
[1742621964752,7.33913275,1987.3,1987.2,0.36876951]
[1742621965050,5.032,1987.3,1987.2,0.36876951]
[1742621969925,5.79393,1987.4,1987.2,0.36876951]
[1742621970164,10.06382,1987.4,1987.2,0.36876951]
[1742621970643,5.03189,1987.4,1987.2,0.36876951]
[1742621971023,5.03187,1987.4,1987.2,0.36876951]
[1742621971254,5.03152,1987.5,1987.2,0.36876951]
[1742621971676,10.06315,1987.5,1987.2,0.36876951]
[1742621971872,5.03174,1987.4,1987.2,0.36876951]
[1742621984782,3.10173275,1987.3,1987.2,0.36876951]
[1742621984987,0.7946,1987.3,1987.2,0.36876951]
[1742621985611,5.82655,1987.3,1987.2,0.36876951]
[1742621986260,5.03195,1987.3,1987.2,0.36876951]
[1742621986460,5.03178,1987.4,1987.2,0.36876951]
[1742621986853,7.33860275,1987.5,1987.2,0.36876951]
[1742621987057,12.37028275,1987.5,1987.2,0.36876951]
[1742621989797,5.03171,1987.4,1987.2,0.36876951]
[1742622000197,5.03147,1987.5,1987.2,0.36876951]
[1742622000801,10.06311,1987.5,1987.2,0.36876951]
[1742622002106,5.0317,1987.4,1987.2,0.36876951]
[1742622004002,12.37071275,1987.4,1987.2,0.36876951]
[1742622004194,0.7992,1987.3,1987.2,0.36876951]
[1742622005107,5.83115,1987.3,1987.2,0.36876951]
[1742622020118,5.03195,1987.3,1987.2,0.36876951]
[1742622021330,7.33888275,1987.4,1987.2,0.36876951]
[1742622025446,5.03175,1987.4,1987.2,0.36876951]
[1742622025734,7.33888275,1987.4,1987.2,0.36876951]
[1742622031549,7.33888275,1987.4,1987.2,0.50533946]
[1742622031714,5.03175,1987.4,1987.2,0.50533946]
[1742622034032,0.7654,1987.5,1987.2,5.53751946]
[1742622034234,7.33841275,1987.6,1987.2,11.58664641]
[1742622034438,7.33841275,1987.6,1987.3,5.0319]
[1742622034801,7.33841275,1987.6,1987.4,0.505279]
[1742622035004,7.33841275,1987.6,1987.3,5.0319]
[1742622035205,7.33841275,1987.6,1987.5,0.505138]
[1742622035433,7.33841275,1987.6,1987.3,5.0319]
[1742622035615,5.03128,1987.6,1987.5,0.505138]
[1742622035820,7.33841275,1987.6,1987.4,0.5051179]
[1742622036005,7.33841275,1987.6,1987.5,0.5049769]
[1742622036212,8.09249275,1987.7,1987.3,5.03181]
[1742622036409,8.09249275,1987.7,1987.5,0.5049769]
[1742622036734,8.09249275,1987.7,1987.6,0.50483591]
[1742622036933,7.33809275,1987.7,1987.3,10.06364]
[1742622037141,7.33809275,1987.7,1987.6,0.50483591]
[1742622037437,7.33809275,1987.7,1987.3,10.06364]
[1742622037635,7.33809275,1987.7,1987.6,0.50483591]
[1742622037817,7.33809275,1987.7,1987.3,10.06364]
[1742622038016,7.33809275,1987.7,1987.6,0.50483591]
[1742622038240,7.33809275,1987.7,1987.3,5.03181]
[1742622038441,7.33809275,1987.7,1987.6,0.50483591]
[1742622038636,7.33809275,1987.7,1987.3,5.03181]
[1742622038850,7.33809275,1987.7,1987.6,0.50483591]
[1742622039339,7.33809275,1987.7,1987.3,5.03181]
[1742622039642,7.33809275,1987.7,1987.6,0.50483591]
[1742622040127,7.33809275,1987.7,1987.3,5.03181]
[1742622040310,7.33809275,1987.7,1987.6,0.50483591]
[1742622040511,7.33809275,1987.7,1987.3,5.03181]
[1742622040711,7.33809275,1987.7,1987.4,0.5051179]
[1742622041044,7.33809275,1987.7,1987.3,8.698711]
[1742622041243,7.33809275,1987.7,1987.5,0.50425198]
[1742622041448,7.33809275,1987.7,1987.4,0.50439299]
[1742622041629,7.33809275,1987.7,1987.6,0.50411099]
[1742622041815,7.33809275,1987.7,1987.5,0.50425198]
[1742622042139,7.33809275,1987.7,1987.6,0.50411099]
[1742622042342,7.33809275,1987.7,1987.3,5.03181]
[1742622042522,7.33809275,1987.7,1987.6,0.50411099]
[1742622042855,7.33809275,1987.7,1987.3,5.03181]
[1742622043023,7.33809275,1987.7,1987.6,0.50411099]
[1742622043211,7.33809275,1987.7,1987.3,5.03181]
[1742622043412,7.33809275,1987.7,1987.6,0.50411099]
[1742622043623,7.33809275,1987.7,1987.3,5.03181]
[1742622043907,12.36920275,1987.7,1987.3,8.698711]
[1742622044111,12.36920275,1987.7,1987.4,0.50439299]
[1742622044338,12.36920275,1987.7,1987.3,8.698711]
[1742622044647,12.36920275,1987.7,1987.4,5.13539299]
[1742622045658,5.0312,1987.6,1987.4,5.13539299]
[1742622047823,7.33833275,1987.6,1987.4,5.13539299]
[1742622048328,5.0312,1987.6,1987.4,5.13539299]
[1742622051247,5.0312,1987.6,1987.4,6.15212629]
[1742622051843,5.03101,1987.7,1987.4,6.15212629]
[1742622053233,5.0307,1987.8,1987.4,8.45925904]
[1742622053440,5.0307,1987.8,1987.4,6.15212629]
[1742622053635,5.0307,1987.8,1987.5,0.61521263]
[1742622054042,5.0307,1987.8,1987.6,0.50381565]
[1742622054639,5.8021,1987.9,1987.6,0.50381565]
[1742622055073,10.83272,1987.9,1987.6,0.50381565]
[1742622055242,13.13986275,1987.9,1987.6,0.50381565]
[1742622055574,5.03072,1987.8,1987.6,0.50381565]
[1742622056080,2.30713275,1987.7,1987.6,0.50381565]
[1742622056375,13.15571275,1987.7,1987.4,4.631]
[1742622056541,13.15571275,1987.7,1987.5,0.50395664]
[1742622056737,5.03119,1987.6,1987.5,0.50395664]
[1742622057672,1.81654378,1988.2,1987.5,3.32458505]
[1742622057881,5.03054,1987.9,1987.6,2.30713275]
[1742622058043,5.03054,1987.9,1987.5,8.35590505]
[1742622058359,5.03054,1987.9,1987.6,0.50365458]
[1742622059260,5.03077,1987.8,1987.6,0.50365458]
[1742622059465,5.81727,1987.8,1987.6,0.50365458]
[1742622059654,5.81727,1987.8,1987.4,17.38388711]
[1742622059865,5.81727,1987.8,1987.7,0.50351361]
[1742622060064,5.81727,1987.8,1987.4,15.07675436]
[1742622060374,5.81727,1987.8,1987.4,17.38388711]
[1742622060690,5.81727,1987.8,1987.5,5.53523557]
[1742622060847,0.7865,1987.8,1987.5,5.53523557]
[1742622062977,0.7865,1987.8,1987.5,7.32399584]
[1742622063875,5.03049,1987.9,1987.5,7.32399584]
[1742622064083,5.03049,1987.9,1987.5,9.63112859]
[1742622067177,5.03049,1987.9,1987.5,36.23112859]
[1742622069881,5.03049,1987.9,1987.5,41.26238859]
[1742622070185,5.03019,1988.0,1987.7,5.03092]
[1742622070381,5.02994,1988.1,1987.8,5.13294315]
[1742622070583,5.81475,1988.2,1987.8,10.16353315]
[1742622070754,5.02975,1988.2,1987.8,12.4706659]
[1742622070953,5.02975,1988.2,1987.8,13.71773249]
[1742622071253,5.02975,1988.2,1987.8,13.71768249]
[1742622072071,5.02975,1988.2,1987.8,18.74819249]
[1742622072588,5.02975,1988.2,1987.8,13.71765249]
[1742622073203,5.02975,1988.2,1987.8,18.74817249]
[1742622074089,5.02975,1988.2,1987.8,13.71765249]
[1742622077797,10.05964,1988.2,1987.8,13.71765249]
[1742622080979,5.02994,1988.1,1987.8,6.38000974]
[1742622083096,5.02994,1988.1,1987.8,11.41062974]
[1742622083964,5.81475,1988.2,1987.8,11.41062974]
[1742622084799,13.15174275,1988.2,1987.8,10.16356315]
[1742622085103,8.12188275,1988.2,1987.8,10.16356315]
[1742622085804,5.02992,1988.1,1987.8,10.16356315]
[1742622086404,5.02992,1988.1,1987.8,36.75956315]
[1742622086975,8.12186275,1988.2,1987.8,36.75956315]
[1742622087905,13.15174275,1988.2,1987.8,36.75956315]
[1742622089105,8.12186275,1988.2,1987.8,36.75956315]
[1742622089404,13.15173275,1988.2,1987.8,36.75956315]
[1742622093612,8.12186275,1988.2,1987.8,36.75956315]
[1742622093781,13.15172275,1988.2,1987.8,38.64983728]
[1742622094204,5.03029,1988.0,1987.8,27.09894315]
[1742622094480,7.33742275,1988.0,1987.9,4.629]
[1742622094903,5.03029,1988.0,1987.9,5.13123862]
[1742622095207,8.13922275,1988.0,1987.9,0.50223862]
[1742622095414,5.03043,1987.9,1987.8,31.225]
[1742622095804,7.33756275,1987.9,1987.8,31.225]
[1742622095984,7.33756275,1987.9,1987.8,4.629]
[1742622100517,5.03043,1987.9,1987.8,4.629]
[1742622101313,7.33756275,1987.9,1987.8,4.629]
[1742622106426,7.33756275,1987.9,1987.8,5.13191631]
[1742622111511,5.03043,1987.9,1987.8,5.13191631]
[1742622111900,5.03029,1988.0,1987.8,5.13191631]
[1742622112229,5.02993,1988.1,1987.8,5.13191631]
[1742622113135,7.33706275,1988.1,1987.8,6.14819694]
[1742622114935,12.36716275,1988.1,1987.8,6.14819694]
[1742622115831,12.36711275,1988.1,1987.8,6.14819694]
[1742622116033,7.33706275,1988.1,1987.8,6.14819694]
[1742622116340,12.36718275,1988.1,1987.8,5.13191631]
[1742622119125,7.33706275,1988.1,1987.8,5.13191631]
[1742622119427,5.02993,1988.1,1987.8,5.13191631]
[1742622120437,5.02993,1988.1,1987.8,10.16258631]
[1742622120748,5.02993,1988.1,1987.8,5.13191631]
[1742622121443,5.02993,1988.1,1987.8,8.80799094]
[1742622121938,10.06005,1988.1,1987.8,8.80799094]
[1742622122147,5.02993,1988.1,1987.8,8.80799094]
[1742622122349,5.0302,1988.0,1987.8,8.80799094]
[1742622122547,5.0302,1988.0,1987.8,5.13191631]
[1742622123027,7.33733275,1988.0,1987.8,5.13191631]
[1742622123948,12.36769275,1988.0,1987.8,5.13191631]
[1742622124111,7.33733275,1988.0,1987.8,5.13191631]
[1742622131030,5.0302,1988.0,1987.8,5.13191631]
[1742622131959,5.0302,1988.0,1987.8,0.50291631]
[1742622131960,10.4207955,1987.9,1987.8,0.50291631]
[1742622132160,8.11366275,1987.9,1987.8,0.50291631]
[1742622132340,5.03099,1987.7,1987.3,4.629]
[1742622132542,5.03122,1987.6,1987.3,4.629]
[1742622132739,12.36925275,1987.7,1987.3,4.629]
[1742622132929,7.33812275,1987.7,1987.3,9.6609]
[1742622133960,12.36927275,1987.7,1987.3,9.6609]
[1742622134131,5.03122,1987.6,1987.3,9.6609]
[1742622135963,7.33835275,1987.6,1987.3,4.629]
[1742622136162,2.30713275,1987.5,1987.2,3.0]
[1742622136369,5.03176,1987.4,1987.1,26.597]
[1742622136534,5.03176,1987.4,1987.3,5.04824722]
[1742622136736,5.03176,1987.4,1987.3,4.629]
[1742622136935,5.03176,1987.4,1987.3,5.04824722]
[1742622137345,7.33863275,1987.5,1987.3,5.04824722]
[1742622137750,5.0315,1987.5,1987.3,5.04824722]
[1742622137932,7.33863275,1987.5,1987.3,0.41924722]
[1742622138131,5.0315,1987.5,1987.3,5.04824722]
[1742622138339,7.33863275,1987.5,1987.3,4.629]
[1742622138566,7.33863275,1987.5,1987.4,0.4191062]
[1742622138864,5.0315,1987.5,1987.3,4.629]
[1742622139065,5.0315,1987.5,1987.4,0.4191062]
[1742622139358,12.37029275,1987.5,1987.3,4.629]
[1742622139567,12.37029275,1987.5,1987.4,0.4191062]
[1742622139732,7.33863275,1987.5,1987.4,0.4191062]
[1742622140251,12.37032275,1987.5,1987.3,4.629]
[1742622140436,12.37032275,1987.5,1987.4,0.4191062]
[1742622140961,5.03169,1987.4,1987.3,4.629]
[1742622141265,5.03169,1987.4,1987.3,4.63]
[1742622141465,7.33882275,1987.4,1987.3,4.63]
[1742622141648,5.03169,1987.4,1987.3,4.63]
[1742622142056,7.33863275,1987.5,1987.3,4.63]
[1742622142249,12.37030275,1987.5,1987.3,4.63]
[1742622143566,7.33863275,1987.5,1987.3,4.63]
[1742622144064,12.37027275,1987.5,1987.3,4.63]
[1742622144254,10.06314,1987.5,1987.3,4.63]
[1742622146068,5.03169,1987.4,1987.3,4.63]
[1742622150497,4.13355175,1987.4,1986.8,3.0]
[1742622150650,2.30713275,1987.1,1986.8,8.03312]
[1742622150976,5.03233,1987.2,1986.8,8.03312]
[1742622151465,5.03233,1987.2,1986.9,0.35200004]
[1742622151664,5.03233,1987.2,1986.8,8.03312]
[1742622151968,5.03233,1987.2,1987.0,0.35185897]
[1742622152176,5.03233,1987.2,1986.9,0.35200004]
[1742622152476,5.03233,1987.2,1987.0,0.35185897]
[1742622152679,5.03233,1987.2,1986.8,8.03304]
[1742622152975,5.03233,1987.2,1986.9,0.803304]
[1742622153177,5.03233,1987.2,1986.9,1.15530404]
[1742622153778,5.03215,1987.3,1986.9,6.18809404]
[1742622155679,5.03215,1987.3,1986.9,32.79309404]
[1742622158402,7.33883275,1987.4,1987.0,5.03259]
[1742622158680,5.03197,1987.3,1987.1,4.98871791]
[1742622163197,7.33883275,1987.4,1987.1,4.98871791]
[1742622163392,12.37074275,1987.4,1987.1,4.98871791]
[1742622164198,10.06361,1987.4,1987.1,4.98871791]
[1742622164408,5.0317,1987.4,1987.1,4.98871791]
[1742622164902,10.06362,1987.4,1987.1,4.98871791]
[1742622165579,5.03196,1987.3,1987.1,4.98871791]
[1742622166196,10.0641,1987.3,1987.1,4.98871791]
[1742622166372,5.03196,1987.3,1987.1,4.98871791]
[1742622168801,8.16843275,1987.2,1987.1,0.35171791]
[1742622168986,0.8291,1987.2,1987.1,0.35171791]
[1742622169187,5.03196,1987.3,1987.0,2.30713275]
[1742622169408,5.03171,1987.4,1987.1,0.3522962]
[1742622169996,5.03196,1987.3,1987.1,0.3522962]
[1742622170369,5.03196,1987.3,1986.9,7.33989275]